bitfinex-derivatives/quotes_ETHF0:USTF0_20250116
["timestamp","ask_amount","ask_price","bid_price","bid_amount"]
[1737052150139,2.2924404,3324.5,3324.4,0.6017]
[1737052150635,2.2924404,3324.7,3324.0,40.8]
[1737052151037,0.60168,3324.6,3324.5,0.60168]
[1737052151339,0.60169,3324.5,3324.0,40.8]
[1737052152336,4.5848808,3324.1,3322.9,4.72515714]
[1737052152635,2.2924404,3323.0,3322.9,4.72515714]
[1737052152833,2.8943904,3323.0,3322.9,4.72515714]
[1737052153035,2.8943504,3323.3,3323.0,0.60194]
[1737052153334,0.60197,3322.9,3322.8,4.72515714]
[1737052154531,2.2924404,3323.0,3322.8,4.72515714]
[1737052154733,2.8944004,3323.0,3322.8,4.71225714]
[1737052154931,2.8944004,3323.0,3322.7,0.0057161]
[1737052154932,2.2924404,3323.0,3322.7,0.0057161]
[1737052155329,2.2904502,3323.0,3322.7,0.0057161]
[1737052155734,3.2078,3323.2,3323.0,0.60194]
[1737052155929,1.47737242,3324.0,3322.7,1.5107161]
[1737052155930,5.5002404,3323.6,3322.7,1.5107161]
[1737052156234,2.2924404,3323.9,3322.9,3.2078]
[1737052156435,0.60182,3323.8,3323.5,0.60185]
[1737052156639,0.60183,3323.7,3323.5,0.60185]
[1737052156940,2.2924404,3323.6,3323.5,0.60185]
[1737052157738,0.60182,3323.8,3323.6,0.60183]
[1737052158142,0.60184,3323.7,3323.5,0.60185]
[1737052159130,0.60185,3323.6,3323.4,0.60187]
[1737052159337,2.2924404,3323.9,3323.0,2.4134]
[1737052159535,2.2924404,3323.6,3323.5,0.60186]
[1737052159939,2.8942804,3323.6,3323.4,0.60187]
[1737052160135,0.60186,3323.5,3323.4,40.8]
[1737052160336,0.6019,3323.3,3323.1,0.60192]
[1737052160544,2.2924404,3323.6,3323.0,1.231]
[1737052160743,0.60192,3323.2,3323.0,1.231]
[1737052161042,2.2924404,3323.3,3322.9,3.2078]
[1737052161244,0.60189,3323.4,3323.2,0.60191]
[1737052161737,0.60192,3323.2,3323.0,41.40194]
[1737052161942,0.6019,3323.3,3323.1,0.60193]
[1737052162831,0.60189,3323.4,3323.1,0.60193]
[1737052163038,3.2078,3323.5,3323.0,40.8]
[1737052163338,2.8943504,3323.3,3323.0,41.40195]
[1737052163642,3.2078,3323.1,3322.7,0.0057161]
[1737052163942,0.60199,3322.8,3322.7,0.0057161]
[1737052168839,2.8944304,3322.8,3322.7,0.0057161]
[1737052169040,7.8944304,3322.8,3322.7,0.0057161]
[1737052169243,7.8944304,3322.8,3321.9,3.2078]
[1737052169244,3.01026,3322.5,3320.7,1.31680932]
[1737052169447,2.2924404,3320.8,3320.7,1.31680932]
[1737052169645,3.2078,3321.5,3320.7,42.11680932]
[1737052169849,1.232,3321.9,3320.7,40.8]
[1737052169850,2.2924404,3320.8,3320.7,40.8]
[1737052170050,2.2924404,3320.8,3320.4,3.2078]
[1737052170247,0.60235,3320.8,3320.4,3.2078]
[1737052170548,5.5002404,3321.1,3320.5,40.8]
[1737052170945,2.2924404,3321.4,3320.9,3.2078]
[1737052171142,3.2078,3322.1,3321.6,0.60219]
[1737052171348,3.2078,3322.1,3321.7,3.2078]
[1737052171647,3.2078,3322.1,3321.6,3.2078]
[1737052171848,3.2078,3322.1,3321.9,0.60215]
[1737052172047,0.60205,3322.5,3322.0,1.14623]
[1737052172252,0.60206,3322.5,3322.1,0.60211]
[1737052172452,0.6021,3322.2,3322.0,0.5441]
[1737052172950,0.6021,3322.2,3321.9,1.17605]
[1737052172951,2.2924404,3322.3,3321.9,0.5739]
[1737052173753,0.60212,3322.1,3321.9,0.5739]
[1737052174354,0.60213,3322.1,3321.9,0.5739]
[1737052174559,2.2924404,3322.3,3322.0,0.60213]
[1737052174748,2.2924404,3322.3,3322.1,0.5436]
[1737052175254,3.2078,3322.6,3322.2,0.60208]
[1737052176554,3.80983,3322.6,3322.2,0.60208]
[1737052177050,3.2078,3322.6,3322.1,0.5436]
[1737052177249,2.2924404,3322.4,3322.1,0.5436]
[1737052177455,2.2924404,3322.4,3322.1,1.14571]
[1737052178351,2.2924404,3322.4,3322.0,3.2078]
[1737052178556,2.2924404,3322.1,3322.0,3.2078]
[1737052178959,2.8945604,3322.1,3321.9,0.5739]
[1737052179254,179.51523919,3322.1,3321.9,0.5739]
[1737052179651,178.91311919,3322.1,3321.9,0.5739]
[1737052180461,176.62067879,3322.1,3321.9,0.5739]
[1737052180951,176.62067879,3322.1,3322.0,0.60213]
[1737052197763,177.22278879,3322.1,3322.0,0.60213]
[1737052198171,0.60213,3322.0,3321.9,3.80993]
[1737052198367,176.62067879,3322.1,3322.0,0.60213]
[1737052201369,179.82847879,3322.1,3321.1,3.2078]
[1737052201571,179.82847879,3322.1,3321.2,0.5346]
[1737052201572,2.2924404,3321.4,3321.2,0.5346]
[1737052201777,2.2924404,3321.4,3320.9,9.32812426]
[1737052202075,2.8947504,3321.0,3320.9,9.32812426]
[1737052202476,2.2924404,3321.0,3320.6,7.07839284]
[1737052202670,2.8948104,3320.7,3320.6,7.07839284]
[1737052203073,6.1026104,3320.7,3320.6,7.07839284]
[1737052204069,6.1026104,3320.7,3319.8,16.7625895]
[1737052204070,0.60253,3319.8,3319.7,3.2078]
[1737052204270,5.5002404,3319.8,3319.2,7.07269284]
[1737052204581,0.60257,3319.6,3319.3,41.40261]
[1737052204872,2.2924404,3319.4,3319.2,7.07269284]
[1737052205075,6.1028404,3319.4,3319.2,7.07269284]
[1737052205271,5.5002404,3319.4,3319.2,7.67532284]
[1737052205472,3.2078,3319.8,3319.7,0.60254]
[1737052206269,2.32072697,3319.9,3319.8,0.60253]
[1737052207076,2.32072697,3319.9,3319.6,1.27]
[1737052207077,2.2924404,3320.3,3319.6,1.27]
[1737052207376,2.2924404,3320.3,3320.0,0.60248]
[1737052207682,2.2924404,3320.3,3320.2,0.60246]
[1737052208275,2.2924404,3320.3,3319.8,40.8]
[1737052208577,0.60244,3320.3,3319.9,0.6025]
[1737052208778,3.2078,3320.4,3319.6,0.60256]
[1737052208975,0.60249,3320.1,3319.8,0.60252]
[1737052209168,0.60251,3320.0,3319.7,0.60255]
[1737052209369,2.2924404,3319.8,3319.7,0.60255]
[1737052209982,2.8949704,3319.8,3319.5,0.60257]
[1737052210173,0.60255,3319.7,3319.3,0.60261]
[1737052210374,2.2924404,3319.5,3319.2,1.1622]
[1737052210683,2.2924404,3319.5,3319.4,0.6026]
[1737052211280,2.2924404,3319.5,3319.2,1.1622]
[1737052211478,2.2924404,3319.5,3319.3,0.60261]
[1737052212275,2.2924404,3319.5,3319.2,0.5895]
[1737052212581,2.2924404,3319.5,3319.3,0.60262]
[1737052213182,2.2924404,3319.5,3319.2,1.19213]
[1737052213781,2.2924404,3319.5,3319.3,0.60262]
[1737052214777,2.2924404,3319.8,3319.2,0.5895]
[1737052215190,2.2924404,3319.8,3319.6,0.60256]
[1737052215575,3.2078,3320.0,3319.9,0.60251]
[1737052215878,5.5002404,3320.4,3319.6,2.77643]
[1737052216078,5.5002404,3320.4,3320.1,0.60246]
[1737052216285,0.60245,3320.3,3319.7,0.60255]
[1737052216484,0.60245,3320.3,3319.6,2.77643]
[1737052216485,6.1026704,3320.4,3319.6,2.77643]
[1737052216684,5.5002404,3320.4,3319.6,2.77643]
[1737052216887,5.5002404,3320.4,3320.2,0.60245]
[1737052217087,0.60247,3320.2,3319.7,0.60255]
[1737052217288,2.2924404,3320.1,3320.0,0.60249]
[1737052217986,2.8949304,3320.1,3319.9,0.6025]
[1737052218175,2.2924404,3320.1,3320.0,0.60249]
[1737052218990,2.2924404,3320.1,3319.5,41.3758]
[1737052219288,2.2924404,3319.8,3319.7,0.60254]
[1737052219681,2.2924404,3319.8,3319.3,41.3814]
[1737052219875,2.8949904,3319.8,3319.6,0.60256]
[1737052220085,2.2924404,3319.8,3319.2,1.19213]
[1737052220284,0.60262,3319.3,3319.2,1.19213]
[1737052220586,0.60262,3319.3,3319.2,0.5895]
[1737052221188,0.60266,3319.1,3318.4,3.2078]
[1737052221388,2.8951204,3319.0,3318.9,0.60269]
[1737052221986,2.2924404,3319.0,3318.9,0.60269]
[1737052222491,2.2924404,3319.0,3318.5,0.556]
[1737052222492,7.2924404,3319.0,3318.5,0.556]
[1737052222788,2.2924404,3318.6,3318.1,0.95422386]
[1737052223182,2.2924404,3318.3,3318.1,0.95422386]
[1737052223383,2.8952504,3318.3,3318.2,0.60282]
[1737052223585,2.2924404,3318.3,3318.2,0.60282]
[1737052223792,0.60278,3318.5,3318.3,0.60279]
[1737052223988,3.2078,3318.4,3318.1,0.95422386]
[1737052224196,2.2924404,3318.3,3318.2,0.6028]
[1737052225292,3.2078,3318.4,3318.1,0.95422386]
[1737052225293,3.2078,3318.4,3318.3,0.6028]
[1737052227598,3.2078,3318.4,3318.3,41.4028]
[1737052227895,3.2078,3318.4,3318.3,0.6028]
[1737052228297,5.5002404,3318.9,3318.8,0.60271]
[1737052228787,1.271,3319.8,3318.3,44.0078]
[1737052228788,3.2078,3319.3,3318.3,46.3002404]
[1737052228989,3.2078,3319.3,3319.2,0.60264]
[1737052229189,2.2924404,3319.6,3319.2,0.60264]
[1737052229493,2.2924404,3319.6,3319.5,0.60259]
[1737052231288,5.5002404,3319.9,3319.8,0.60253]
[1737052231495,3.2078,3319.9,3319.8,0.60253]
[1737052231692,3.81031,3319.9,3319.3,0.5496]
[1737052231896,3.81031,3319.9,3319.8,0.60253]
[1737052232696,3.2078,3319.9,3319.8,0.60253]
[1737052233202,3.81031,3319.9,3319.8,0.60253]
[1737052233393,3.2078,3319.9,3319.8,0.60253]
[1737052233891,3.81031,3319.9,3319.8,0.60253]
[1737052234097,0.60256,3319.7,3319.3,0.5496]
[1737052234298,0.60256,3319.7,3319.6,0.60257]
[1737052235594,0.6026,3319.4,3319.3,0.5496]
[1737052235906,0.60264,3319.2,3319.1,3.81044]
[1737052236100,2.9638195,3319.4,3318.9,1.106]
[1737052236395,0.60267,3319.1,3319.0,0.60267]
[1737052236602,0.60268,3319.0,3318.9,0.5584]
[1737052236898,0.60268,3319.0,3318.9,0.60269]
[1737052236899,3.5665095,3319.0,3318.9,0.60269]
[1737052237496,2.9638195,3319.0,3318.7,0.5549]
[1737052237699,0.6027,3318.9,3318.8,0.60271]
[1737052237901,6.1716195,3319.0,3318.9,0.60269]
[1737052238491,6.7742995,3319.0,3318.9,0.60269]
[1737052239201,6.1716195,3319.0,3318.9,0.60269]
[1737052239898,0.60265,3319.2,3319.1,0.60266]
[1737052240699,0.60269,3319.0,3318.9,0.60267]
[1737052240896,2.9638195,3319.3,3318.7,0.5549]
[1737052241094,3.2078,3319.6,3318.7,0.5549]
[1737052241296,3.2078,3319.6,3319.5,0.60259]
[1737052241492,3.81037,3319.6,3319.5,0.60259]
[1737052241805,0.60252,3319.9,3319.3,1.50654]
[1737052241997,180.43098879,3320.0,3319.9,0.60251]
[1737052242193,3.2078,3320.0,3319.9,0.60251]
[1737052242598,3.2078,3320.0,3319.5,0.5508]
[1737052242599,2.29687402,3320.3,3319.7,3.2078]
[1737052242800,2.29687402,3320.3,3320.2,0.60246]
[1737052243301,2.29687402,3320.3,3320.2,1.19016]
[1737052244090,1.40627402,3320.3,3320.2,1.19016]
[1737052244291,3.44531103,3320.4,3320.2,1.19016]
[1737052244292,0.41331103,3320.4,3320.3,0.60244]
[1737052244795,0.41331103,3320.4,3320.2,0.5877]
[1737052245001,0.41331103,3320.4,3320.2,1.19015]
[1737052245201,1.01574103,3320.4,3320.2,0.60245]
[1737052245701,1.01574103,3320.4,3320.3,0.60244]
[1737052245702,0.41331103,3320.4,3320.3,0.60244]
[1737052245903,5.19613804,3320.6,3320.4,0.6024]
[1737052246099,4.59374804,3320.6,3320.4,0.6024]
[1737052246297,7.55756754,3320.6,3320.1,3.2078]
[1737052246610,0.60243,3320.4,3320.0,40.8]
[1737052246798,0.60243,3320.4,3320.2,0.60244]
[1737052247102,7.55756754,3320.6,3319.9,2.1088]
[1737052247103,0.60241,3320.5,3319.9,2.1088]
[1737052247302,0.60241,3320.5,3320.3,0.60243]
[1737052247900,0.60242,3320.5,3320.2,0.60244]
[1737052248101,4.59374804,3320.6,3319.9,0.562]
[1737052248401,4.59374804,3320.6,3320.5,0.6024]
[1737052251702,4.59374804,3320.6,3320.5,3.8102]
[1737052253614,0.60228,3321.2,3320.5,3.8102]
[1737052253909,0.60228,3321.2,3321.0,0.6023]
[1737052255110,2.29995385,3321.3,3320.7,0.5747]
[1737052255406,2.29995385,3321.3,3321.2,0.60228]
[1737052255604,3.81003,3321.5,3321.3,0.60225]
[1737052255807,3.2078,3321.5,3321.3,0.60225]
[1737052256005,3.2078,3321.5,3320.7,2.08059]
[1737052256204,3.2078,3321.5,3321.4,0.60224]
[1737052256409,0.60218,3321.8,3321.7,0.60218]
[1737052256606,3.2078,3322.0,3321.9,0.60215]
[1737052256909,6.89370189,3322.2,3322.1,0.60211]
[1737052256910,4.59374804,3322.2,3322.1,0.60211]
[1737052257507,3.70324804,3322.2,3322.1,2.90206385]
[1737052257716,5.74218506,3322.4,3322.1,2.29995385]
[1737052258007,0.5857,3323.2,3323.1,0.60193]
[1737052258503,4.61971665,3323.3,3323.1,0.60193]
[1737052258702,4.61971665,3323.3,3322.8,40.8]
[1737052258905,5.22161665,3323.3,3323.1,0.60193]
[1737052259107,4.61971665,3323.3,3322.8,40.8]
[1737052259409,0.60188,3323.4,3323.0,0.60193]
[1737052259711,0.6019,3323.3,3323.1,0.60192]
[1737052259912,3.2078,3323.5,3323.2,0.60191]
[1737052260207,2.9573335,3323.4,3322.8,40.8]
[1737052260510,1.50488,3323.0,3322.3,3.2078]
[1737052260708,0.60206,3322.4,3322.3,3.2078]
[1737052260908,0.60205,3322.5,3322.4,0.60205]
[1737052261107,3.5048335,3322.8,3322.3,3.2078]
[1737052261508,3.5048335,3322.8,3322.4,0.60205]
[1737052261812,3.5048335,3322.8,3322.0,4.4668]
[1737052261813,0.60205,3322.5,3322.0,4.4668]
[1737052262014,0.60203,3322.6,3322.0,4.4668]
[1737052262213,3.2078,3322.7,3322.0,4.4668]
[1737052262613,3.80981,3322.7,3322.6,0.60202]
[1737052262809,3.2078,3322.7,3322.6,0.60202]
[1737052263510,0.60196,3323.0,3322.9,0.60196]
[1737052263704,3.2078,3323.2,3322.4,3.7774]
[1737052264014,3.80971,3323.2,3323.1,0.60193]
[1737052264208,3.2078,3323.2,3323.1,0.60193]
[1737052265205,1.14935,3323.6,3323.1,0.60193]
[1737052265206,0.5475,3323.6,3323.5,0.60186]
[1737052265406,1.14934,3323.6,3323.5,0.60186]
[1737052266004,0.60187,3323.5,3323.4,0.60186]
[1737052266214,3.2078,3323.7,3323.2,0.5825]
[1737052266408,3.80963,3323.7,3323.6,0.60184]
[1737052267110,3.2078,3323.7,3322.8,1.258]
[1737052267318,3.2078,3323.7,3323.3,0.60189]
[1737052267319,0.6019,3323.4,3323.3,0.60189]
[1737052267513,3.2078,3323.7,3322.8,4.4658]
[1737052267708,0.60188,3323.5,3323.4,0.60187]
[1737052267902,0.60185,3323.6,3323.5,0.60185]
[1737052268508,0.60188,3323.5,3323.4,0.60188]
[1737052269503,0.60185,3323.6,3323.5,0.60185]
[1737052269711,3.2078,3323.7,3323.0,1.50488]
[1737052269904,3.80963,3323.7,3323.6,0.60184]
[1737052270111,3.2078,3324.1,3323.1,1.50484]
[1737052270414,0.60182,3323.8,3323.7,0.60181]
[1737052270611,0.60185,3323.6,3323.1,1.50484]
[1737052270810,0.60185,3323.6,3323.5,0.60186]
[1737052271010,0.60189,3323.4,3323.3,0.60189]
[1737052271508,0.60186,3323.6,3323.5,0.60186]
[1737052272117,3.2078,3324.1,3323.4,3.2078]
[1737052272314,1.16542,3324.3,3324.2,0.60173]
[1737052272611,0.5637,3324.3,3324.2,0.60173]
[1737052273113,6.7565335,3324.9,3324.8,0.60162]
[1737052273322,4.40081,3324.9,3324.8,0.60162]
[1737052273520,4.40081,3324.9,3324.3,1.50426]
[1737052273521,3.7992,3324.9,3324.3,1.50426]
[1737052273720,0.60164,3324.8,3324.7,0.60163]
[1737052274020,3.7992,3324.9,3324.3,1.50426]
[1737052274214,4.40081,3324.9,3324.8,0.60162]
[1737052274421,0.60164,3324.8,3324.7,0.60163]
[1737052274615,0.60162,3324.8,3324.4,40.8]
[1737052274816,0.60162,3324.8,3324.7,0.60164]
[1737052275511,0.60162,3324.8,3324.4,40.8]
[1737052275512,0.60165,3324.7,3324.5,0.60168]
[1737052275718,0.60167,3324.6,3324.4,40.8]
[1737052275918,2.9573335,3324.7,3324.4,40.8]
[1737052276120,2.9573335,3324.7,3324.1,3.2078]
[1737052276121,0.60181,3323.8,3323.7,0.60182]
[1737052276511,2.9573335,3324.2,3323.6,0.60182]
[1737052276512,0.60183,3323.7,3323.6,0.60182]
[1737052276717,0.60187,3323.5,3323.4,0.60186]
[1737052277022,0.60187,3323.5,3323.3,1.258]
[1737052277023,2.9573335,3323.8,3323.7,0.60182]
[1737052277221,4.4092,3324.1,3323.4,1.50466]
[1737052277523,0.6017,3324.5,3324.4,0.60169]
[1737052277822,0.60169,3324.5,3324.4,0.60169]
[1737052278325,3.5590035,3324.6,3324.5,0.60168]
[1737052278617,2.9573335,3324.6,3323.8,0.5784]
[1737052278821,0.60176,3324.1,3324.0,0.60175]
[1737052279012,3.2078,3324.2,3323.8,0.5784]
[1737052279219,6.1651335,3324.2,3323.8,0.5784]
[1737052279423,6.1651335,3324.2,3323.6,1.258]
[1737052279625,6.1651335,3324.2,3323.5,0.6114]
[1737052279819,0.60178,3324.0,3323.9,0.60177]
[1737052280019,6.1651335,3324.2,3323.1,12.643]
[1737052280317,0.60188,3323.5,3323.4,0.60187]
[1737052280519,6.1651335,3323.7,3322.9,0.60196]
[1737052280711,0.60192,3323.2,3322.7,0.602]
[1737052280916,6.1651335,3322.9,3322.3,1.8694]
[1737052281123,0.602,3322.8,3322.4,0.60206]
[1737052281324,0.602,3322.8,3322.6,0.60202]
[1737052281517,0.60202,3322.7,3322.5,0.60203]
[1737052281717,0.60202,3322.7,3322.6,0.60202]
[1737052281914,0.60195,3323.1,3322.9,0.60196]
[1737052282316,0.60195,3323.1,3322.5,3.2078]
[1737052282523,6.1651335,3323.3,3322.6,1.50507]
[1737052282723,6.1651335,3323.3,3322.3,1.8694]
[1737052282922,0.60194,3323.1,3322.9,0.60196]
[1737052283627,0.60192,3323.2,3323.0,0.60194]
[1737052284429,6.1651335,3323.3,3322.4,1.50516]
[1737052284621,6.1651335,3323.3,3322.3,1.8694]
[1737052285125,0.60196,3323.0,3322.8,0.60198]
[1737052285321,6.1651335,3323.3,3322.4,1.50516]
[1737052285927,0.60194,3323.1,3322.9,0.60196]
[1737052286327,6.1651335,3323.3,3323.0,0.60194]
[1737052286328,0.60192,3323.2,3323.0,0.60194]
[1737052286827,0.60192,3323.2,3323.1,40.8]
[1737052287320,6.1651335,3323.3,3323.1,40.8]
[1737052287526,6.1651335,3323.3,3323.2,0.60191]
[1737052287731,3.2078,3323.3,3323.2,0.60191]
[1737052287924,0.6523,3323.8,3323.2,0.60191]
[1737052288230,0.60184,3323.6,3323.5,0.60185]
[1737052289027,0.6019,3323.3,3323.2,1.258]
[1737052289329,3.5592335,3323.3,3323.2,1.258]
[1737052290522,2.9573335,3323.3,3322.7,40.8]
[1737052290724,177.27297879,3323.8,3322.5,0.6479]
[1737052290725,6.1651335,3322.9,3322.5,0.6479]
[1737052290926,0.60217,3321.9,3321.8,0.60216]
[1737052291125,3.2078,3321.9,3321.7,40.8]
[1737052291331,0.60217,3321.8,3321.7,41.40219]
[1737052291527,0.60217,3321.8,3321.7,40.8]
[1737052291727,3.80996,3321.9,3321.8,0.60217]
[1737052292234,3.2078,3321.9,3321.8,0.60217]
[1737052293025,3.2078,3322.3,3321.5,40.8]
[1737052293228,0.60216,3321.9,3321.5,42.053]
[1737052293433,0.60213,3322.1,3321.9,0.60214]
[1737052294531,0.60213,3322.0,3321.9,0.60214]
[1737052294727,0.60212,3322.1,3321.5,42.053]
[1737052295035,0.60212,3322.1,3322.0,0.60213]
[1737052295231,3.2078,3322.3,3321.7,3.2078]
[1737052295539,3.2078,3322.3,3322.2,0.6021]
[1737052295835,3.2078,3322.7,3321.9,1.50534]
[1737052296034,0.60205,3322.5,3322.4,0.60206]
[1737052297135,3.2078,3322.7,3321.7,3.2078]
[1737052297335,3.2078,3322.7,3321.8,1.50543]
[1737052297726,3.2078,3322.7,3321.5,42.053]
[1737052297727,3.2078,3322.7,3322.6,0.60202]
[1737052297935,0.60196,3323.0,3322.8,0.60197]
[1737052298136,0.6019,3323.3,3323.1,0.60192]
[1737052298328,0.60193,3323.2,3323.0,0.60194]
[1737052298530,0.60193,3323.2,3322.7,40.8]
[1737052298728,0.60194,3323.1,3322.7,40.8]
[1737052298926,3.5749335,3323.4,3322.7,40.8]
[1737052299234,5.0796735,3323.4,3322.7,40.8]
[1737052299530,5.0796735,3323.4,3322.8,0.60199]
[1737052299531,0.60194,3323.1,3322.8,0.60199]
[1737052299733,0.60194,3323.1,3322.7,40.8]
[1737052299932,0.60194,3323.1,3322.8,0.60199]
[1737052300140,0.60194,3323.1,3322.7,40.8]
[1737052300437,0.60192,3323.2,3323.1,0.60193]
[1737052300643,0.6176,3323.4,3323.3,0.6019]
[1737052301333,0.6176,3323.4,3322.9,3.8415]
[1737052301528,1.50475,3323.3,3322.7,40.8]
[1737052301735,0.60195,3323.1,3323.0,0.60194]
[1737052302239,1.21948,3323.4,3323.3,0.6019]
[1737052302835,4.1768135,3323.4,3323.3,0.6019]
[1737052303434,3.5749335,3323.4,3322.5,4.4618]
[1737052303730,3.2078,3323.0,3322.5,4.4618]
[1737052303930,3.80976,3323.0,3322.9,0.60197]
[1737052304131,3.2078,3323.0,3322.9,0.60197]
[1737052304537,3.80975,3323.0,3322.9,0.60197]
[1737052305433,0.60202,3322.6,3322.5,3.80983]
[1737052305635,0.60206,3322.5,3322.4,0.60205]
[1737052306430,3.80984,3322.6,3322.5,0.60204]
[1737052306738,3.2078,3322.6,3322.5,0.60204]
[1737052307138,3.80982,3322.6,3322.5,0.60204]
[1737052307839,3.2078,3323.1,3322.1,1.254]
[1737052308142,3.2078,3323.1,3323.0,0.60195]
[1737052308143,3.80976,3323.1,3323.0,0.60195]
[1737052308840,3.2078,3323.1,3323.0,0.60195]
[1737052309043,3.4823966,3323.2,3323.1,0.60193]
[1737052309636,2.4971966,3323.2,3323.1,5.60193]
[1737052309832,4.61271825,3323.4,3323.1,5.0]
[1737052310036,4.61271825,3323.4,3323.3,0.6019]
[1737052310847,4.36511825,3323.4,3323.3,5.6019]
[1737052311234,2.33831825,3323.4,3323.3,5.6019]
[1737052311640,176.62067879,3323.8,3323.6,0.60184]
[1737052311949,176.62067879,3323.8,3323.6,3.80964]
[1737052312249,176.62067879,3323.8,3323.6,8.80964]
[1737052312844,5.11415898,3323.7,3323.6,8.80964]
[1737052313050,4.42829898,3323.7,3323.6,8.80964]
[1737052313447,176.62067879,3323.8,3323.6,8.2078]
[1737052313646,176.62067879,3323.8,3323.7,1.85482]
[1737052313951,176.62067879,3323.8,3323.7,42.65482]
[1737052314246,176.62067879,3323.8,3323.7,47.65482]
[1737052317552,114.02002192,3323.8,3323.7,47.65482]
[1737052317852,108.18697504,3323.8,3323.7,47.65482]
[1737052318148,83.85801838,3323.8,3323.7,47.65482]
[1737052318355,73.32124505,3323.8,3323.7,47.65482]
[1737052318549,10.31930839,3323.8,3323.7,47.65482]
[1737052318751,6.89135878,3324.9,3323.7,47.053]
[1737052319051,6.89135878,3324.9,3324.8,0.60162]
[1737052319253,6.89135878,3324.9,3324.8,1.85462]
[1737052319448,6.89135878,3324.9,3324.8,42.65462]
[1737052319950,6.89135878,3324.9,3324.8,47.65462]
[1737052320544,6.89135878,3324.9,3324.8,42.65462]
[1737052321648,6.89135878,3324.9,3324.8,1.85462]
[1737052322148,4.2074335,3325.7,3324.8,1.253]
[1737052322355,2.9573335,3325.3,3324.7,4.4488]
[1737052322553,0.60168,3324.5,3324.4,4.69827666]
[1737052322852,3.61048,3324.5,3324.4,4.69827666]
[1737052323045,3.0088,3324.5,3324.4,4.69827666]
[1737052323252,3.0088,3324.5,3324.4,0.6017]
[1737052323750,3.0088,3324.5,3324.3,1.241]
[1737052323954,3.0088,3324.4,3324.3,1.241]
[1737052324154,3.0088,3324.4,3324.3,1.84272]
[1737052324755,3.0088,3324.4,3324.1,3.2078]
[1737052324953,3.0088,3324.2,3323.7,1.241]
[1737052325152,0.60177,3324.0,3323.8,0.60179]
[1737052325453,3.61061,3323.8,3323.7,1.241]
[1737052325657,3.0088,3323.8,3323.1,7.90607666]
[1737052325855,3.61071,3323.2,3323.1,4.69827666]
[1737052326055,3.61071,3323.2,3323.1,2.72667666]
[1737052326353,3.61071,3323.2,3323.1,0.75377666]
[1737052327253,0.60197,3322.9,3322.8,1.241]
[1737052327450,5.9661335,3322.9,3322.3,1.241]
[1737052327651,0.60205,3322.5,3322.3,1.241]
[1737052327859,3.0088,3322.4,3322.3,1.241]
[1737052328350,3.0088,3322.4,3322.3,42.041]
[1737052328651,3.0088,3322.4,3322.3,1.241]
[1737052329051,3.0088,3322.4,3322.3,41.40208]
[1737052329650,3.61086,3322.4,3322.3,40.8]
[1737052329853,0.60209,3322.3,3322.0,1.241]
[1737052330057,1.24149,3322.3,3322.0,1.84313]
[1737052330253,3.0088,3322.1,3322.0,1.84313]
[1737052330962,3.0088,3322.1,3322.0,1.241]
[1737052331861,3.0088,3322.1,3322.0,1.84313]
[1737052332361,3.0088,3322.1,3322.0,0.60213]
[1737052334759,0.6394,3322.3,3321.9,1.241]
[1737052334963,0.6056,3322.8,3322.7,0.60201]
[1737052335163,0.6056,3322.8,3322.7,1.84301]
[1737052335370,3.6144,3322.8,3322.7,1.84301]
[1737052337271,3.6144,3322.8,3322.7,42.64301]
[1737052337671,4.21639,3322.8,3322.7,42.041]
[1737052337872,4.21639,3322.8,3322.7,1.241]
[1737052338076,4.21639,3322.8,3322.7,0.2792]
[1737052338466,0.60202,3322.7,3322.1,40.8]
[1737052338665,3.0088,3322.3,3322.2,0.6021]
[1737052340676,3.8134,3322.8,3322.7,0.602]
[1737052341176,6.8222,3322.8,3322.2,3.2078]
[1737052341374,3.0088,3322.7,3322.6,3.80982]
[1737052344372,0.29899822,3322.7,3322.6,3.80982]
[1737052344572,0.29899822,3322.7,3322.6,5.05082]
[1737052345180,0.6056,3322.8,3322.7,0.602]
[1737052345581,0.90459822,3322.8,3322.7,0.602]
[1737052345778,3.8222,3323.2,3322.6,4.4488]
[1737052345980,3.8222,3323.2,3323.1,0.60193]
[1737052346179,0.6144,3323.2,3323.1,0.60193]
[1737052346380,0.91339822,3323.2,3323.1,0.60193]
[1737052347681,4.12119822,3323.2,3322.6,4.4488]
[1737052347978,0.29899822,3322.7,3322.6,0.60202]
[1737052348173,3.50679822,3322.7,3322.0,4.4488]
[1737052348479,0.29899822,3322.1,3322.0,1.241]
[1737052348782,0.29899822,3322.1,3322.0,1.84313]
[1737052352187,0.29899822,3322.1,3322.0,5.05093]
[1737052353382,3.2078,3322.7,3322.2,1.50522]
[1737052353582,0.29899822,3322.7,3322.6,0.60202]
[1737052353989,0.29899822,3322.7,3322.6,41.40202]
[1737052355187,3.80972,3323.2,3322.6,41.40202]
[1737052355390,0.29899822,3322.8,3322.7,0.60201]
[1737052355691,2.9573335,3323.0,3322.7,1.238]
[1737052355885,4.10878822,3322.8,3322.7,1.238]
[1737052356087,0.60201,3322.7,3322.0,1.238]
[1737052356392,0.60207,3322.4,3322.2,0.60209]
[1737052356585,0.29899822,3322.1,3322.0,1.238]
[1737052356792,0.29899822,3322.1,3322.0,1.84013]
[1737052357096,0.6162,3322.7,3322.6,0.60202]
[1737052357583,0.91519822,3322.7,3322.6,0.60202]
[1737052357995,0.29899822,3322.7,3322.6,0.60202]
[1737052359492,0.29899822,3322.7,3322.5,0.60203]
[1737052359701,0.29899822,3322.1,3322.0,1.84013]
[1737052360094,0.29899822,3322.1,3321.5,8.55295499]
[1737052360095,3.25633172,3322.1,3321.5,7.04741499]
[1737052360393,3.25633172,3321.6,3321.1,7.04741499]